[Event "Titled Tuesday Blitz July 25 Early 2023"]
[White "Ganiev, Roman"]
[Black "Kiseleva, Arina"]
[WhiteFideId "4131452"]
[BlackFideId "4164989"]
[WhiteElo "2580"]
[BlackElo "2237"]
[Result "1/2-1/2"]
[Round "10"]
[TimeControl "180+2"]
[Date "2023.07.25"]
[WhiteClock "0:00:06"]
[BlackClock "0:00:03"]
[Board "126"]

1. e4 {[%clk 0:03:00]}  c6 {[%clk 0:03:00]} 2. d4 {[%clk 0:03:00]}  d5 {[%clk 0:03:01]} 3. Nc3 {[%clk 0:03:00]}  dxe4 {[%clk 0:03:01]} 4. Nxe4 {[%clk 0:03:01]}  Nf6 {[%clk 0:03:01]} 5. Nxf6+ {[%clk 0:03:02]}  exf6 {[%clk 0:03:01]} 6. c3 {[%clk 0:03:02]}  Bd6 {[%clk 0:03:02]} 7. Bd3 {[%clk 0:03:03]}  Na6 {[%clk 0:03:02]} 8. Ne2 {[%clk 0:03:02]}  h5 {[%clk 0:02:58]} 9. O-O {[%clk 0:03:01]}  Nc7 {[%clk 0:02:53]} 10. Bf4 {[%clk 0:03:00]}  Nd5 {[%clk 0:02:49]} 11. Bxd6 {[%clk 0:02:57]}  Qxd6 {[%clk 0:02:49]} 12. Re1 {[%clk 0:02:57]}  Kf8 {[%clk 0:02:48]} 13. Ng3 {[%clk 0:02:54]}  g6 {[%clk 0:02:45]} 14. Ne4 {[%clk 0:02:54]}  Qd8 {[%clk 0:02:40]} 15. Qf3 {[%clk 0:02:44]}  Bf5 {[%clk 0:02:02]} 16. Nc5 {[%clk 0:02:33]}  Bxd3 {[%clk 0:01:57]} 17. Nxd3 {[%clk 0:02:32]}  Kg7 {[%clk 0:01:52]} 18. Nc5 {[%clk 0:02:29]}  b6 {[%clk 0:01:48]} 19. Ne4 {[%clk 0:02:29]}  f5 {[%clk 0:01:46]} 20. Ng3 {[%clk 0:02:27]}  h4 {[%clk 0:01:43]} 21. Nf1 {[%clk 0:02:27]}  h3 {[%clk 0:01:40]} 22. g3 {[%clk 0:02:26]}  Qd6 {[%clk 0:01:35]} 23. c4 {[%clk 0:02:22]}  Nb4 {[%clk 0:01:24]} 24. Qc3 {[%clk 0:02:22]}  a5 {[%clk 0:01:15]} 25. a3 {[%clk 0:02:21]}  Na6 {[%clk 0:01:14]} 26. Rad1 {[%clk 0:02:17]}  Qf6 {[%clk 0:01:09]} 27. Qf3 {[%clk 0:02:14]}  Rac8 {[%clk 0:01:03]} 28. Ne3 {[%clk 0:02:06]}  Rhd8 {[%clk 0:00:54]} 29. Qf4 {[%clk 0:01:51]}  Nc7 {[%clk 0:00:48]} 30. d5 {[%clk 0:01:49]}  cxd5 {[%clk 0:00:44]} 31. cxd5 {[%clk 0:01:45]}  Ne8 {[%clk 0:00:37]} 32. b4 {[%clk 0:01:42]}  axb4 {[%clk 0:00:36]} 33. axb4 {[%clk 0:01:43]}  Nd6 {[%clk 0:00:35]} 34. Rc1 {[%clk 0:01:36]}  g5 {[%clk 0:00:17]} 35. Qf3 {[%clk 0:01:36]}  Rxc1 {[%clk 0:00:16]} 36. Rxc1 {[%clk 0:01:35]}  Qb2 {[%clk 0:00:16]} 37. Rd1 {[%clk 0:01:30]}  Qxb4 {[%clk 0:00:15]} 38. Nxf5+ {[%clk 0:01:29]}  Nxf5 {[%clk 0:00:15]} 39. Qxf5 {[%clk 0:01:30]}  f6 {[%clk 0:00:14]} 40. Qxh3 {[%clk 0:01:24]}  Qc5 {[%clk 0:00:14]} 41. Qf5 {[%clk 0:01:23]}  b5 {[%clk 0:00:14]} 42. h4 {[%clk 0:01:21]}  gxh4 {[%clk 0:00:13]} 43. gxh4 {[%clk 0:01:22]}  b4 {[%clk 0:00:13]} 44. h5 {[%clk 0:01:22]}  Kf7 {[%clk 0:00:12]} 45. Qg6+ {[%clk 0:01:21]}  Ke7 {[%clk 0:00:10]} 46. Re1+ {[%clk 0:01:09]}  Kd7 {[%clk 0:00:10]} 47. Qf5+ {[%clk 0:01:01]}  Kc7 {[%clk 0:00:08]} 48. Rd1 {[%clk 0:00:45]}  Rg8+ {[%clk 0:00:06]} 49. Kh1 {[%clk 0:00:45]}  Qc4 {[%clk 0:00:06]} 50. d6+ {[%clk 0:00:44]}  Kb7 {[%clk 0:00:05]} 51. Qd5+ {[%clk 0:00:29]}  Qxd5+ {[%clk 0:00:04]} 52. Rxd5 {[%clk 0:00:30]}  Kc6 {[%clk 0:00:04]} 53. Rd3 {[%clk 0:00:27]}  Rd8 {[%clk 0:00:04]} 54. Rd4 {[%clk 0:00:21]}  Kc5 {[%clk 0:00:04]} 55. Rd3 {[%clk 0:00:20]}  Rxd6 {[%clk 0:00:02]} 56. Rxd6 {[%clk 0:00:19]}  Kxd6 {[%clk 0:00:02]} 57. h6 {[%clk 0:00:20]}  b3 {[%clk 0:00:03]} 58. h7 {[%clk 0:00:21]}  b2 {[%clk 0:00:04]} 59. h8=Q {[%clk 0:00:22]}  b1=Q+ {[%clk 0:00:04]} 60. Kg2 {[%clk 0:00:22]}  Qe4+ {[%clk 0:00:04]} 61. Kg1 {[%clk 0:00:22]}  Qe1+ {[%clk 0:00:04]} 62. Kg2 {[%clk 0:00:23]}  Qe4+ {[%clk 0:00:04]} 63. Kf1 {[%clk 0:00:23]}  Qd3+ {[%clk 0:00:04]} 64. Kg1 {[%clk 0:00:22]}  Qd1+ {[%clk 0:00:04]} 65. Kh2 {[%clk 0:00:22]}  Qd5 {[%clk 0:00:04]} 66. Qxf6+ {[%clk 0:00:21]}  Kc5 {[%clk 0:00:03]} 67. Qc3+ {[%clk 0:00:21]}  Kd6 {[%clk 0:00:03]} 68. Kg3 {[%clk 0:00:19]}  Ke6 {[%clk 0:00:03]} 69. Qe3+ {[%clk 0:00:18]}  Kf6 {[%clk 0:00:02]} 70. f4 {[%clk 0:00:16]}  Qf5 {[%clk 0:00:02]} 71. Qd4+ {[%clk 0:00:16]}  Kg6 {[%clk 0:00:02]} 72. Qd6+ {[%clk 0:00:16]}  Qf6 {[%clk 0:00:02]} 73. Qd5 {[%clk 0:00:13]}  Qf5 {[%clk 0:00:03]} 74. Qg8+ {[%clk 0:00:12]}  Kf6 {[%clk 0:00:02]} 75. Qf8+ {[%clk 0:00:07]}  Kg6 {[%clk 0:00:02]} 76. Qa3 {[%clk 0:00:07]}  Kf6 {[%clk 0:00:02]} 77. Qe3 {[%clk 0:00:06]}  Kg6 {[%clk 0:00:02]} 78. Qe5 {[%clk 0:00:07]}  Qxe5 {[%clk 0:00:02]} 79. fxe5 {[%clk 0:00:07]}  Kf5 {[%clk 0:00:02]} 80. e6 {[%clk 0:00:06]}  Kxe6 {[%clk 0:00:03]} 1/2-1/2


[Site "https://www.chess.com"]

[Event "Titled Tuesday Blitz July 25 Early 2023"]
[White "Ionescu, Mihai"]
[Black "Timerkhanov, Alexander"]
[WhiteFideId "1202499"]
[BlackFideId "24177938"]
[WhiteElo "2421"]
[BlackElo "2644"]
[Result "0-1"]
[Round "10"]
[TimeControl "180+2"]
[Date "2023.07.25"]
[WhiteClock "0:00:00"]
[BlackClock "0:01:24"]
[Board "127"]

1. Nf3 {[%clk 0:03:00]}  d5 {[%clk 0:02:59]} 2. g3 {[%clk 0:03:00]}  Bg4 {[%clk 0:02:59]} 3. Bg2 {[%clk 0:02:59]}  c6 {[%clk 0:02:58]} 4. O-O {[%clk 0:02:57]}  Nd7 {[%clk 0:02:58]} 5. d3 {[%clk 0:02:55]}  e6 {[%clk 0:02:58]} 6. Nfd2 {[%clk 0:02:52]}  Bd6 {[%clk 0:02:55]} 7. Qe1 {[%clk 0:02:53]}  Ne7 {[%clk 0:02:51]} 8. e4 {[%clk 0:02:52]}  Qc7 {[%clk 0:02:44]} 9. Kh1 {[%clk 0:02:48]}  Bh5 {[%clk 0:02:38]} 10. f4 {[%clk 0:02:46]}  f6 {[%clk 0:02:37]} 11. d4 {[%clk 0:01:58]}  e5 {[%clk 0:02:27]} 12. fxe5 {[%clk 0:01:56]}  fxe5 {[%clk 0:02:27]} 13. exd5 {[%clk 0:01:53]}  cxd5 {[%clk 0:02:22]} 14. dxe5 {[%clk 0:01:51]}  Nxe5 {[%clk 0:02:22]} 15. Nc3 {[%clk 0:01:48]}  a6 {[%clk 0:02:21]} 16. Nxd5 {[%clk 0:01:34]}  Nxd5 {[%clk 0:02:21]} 17. Bxd5 {[%clk 0:01:35]}  O-O-O {[%clk 0:02:22]} 18. c4 {[%clk 0:01:18]}  Rhe8 {[%clk 0:02:20]} 19. Qf2 {[%clk 0:00:50]}  Bg4 {[%clk 0:02:13]} 20. Qa7 {[%clk 0:00:43]}  Bc5 {[%clk 0:02:00]} 21. Qa8+ {[%clk 0:00:41]}  Qb8 {[%clk 0:02:01]} 22. Bxb7+ {[%clk 0:00:41]}  Kc7 {[%clk 0:01:59]} 23. Qxb8+ {[%clk 0:00:23]}  Kxb8 {[%clk 0:01:59]} 24. Bg2 {[%clk 0:00:21]}  Be2 {[%clk 0:01:41]} 25. Rf5 {[%clk 0:00:12]}  g6 {[%clk 0:01:39]} 26. Rf6 {[%clk 0:00:08]}  Ng4 {[%clk 0:01:39]} 27. Ne4 {[%clk 0:00:00]}  Rd1+ {[%clk 0:01:24]} 0-1


[Site "https://www.chess.com"]

[Event "Titled Tuesday Blitz July 25 Early 2023"]
[White "Sadykov, Ramil"]
[Black "Bueno, Alfeu Junior Varela"]
[WhiteFideId "24113590"]
[BlackFideId "2108879"]
[WhiteElo "2548"]
[BlackElo "2395"]
[Result "1-0"]
[Round "10"]
[TimeControl "180+2"]
[Date "2023.07.25"]
[WhiteClock "0:00:54"]
[BlackClock "0:00:00"]
[Board "128"]

1. d4 {[%clk 0:03:00]}  e6 {[%clk 0:03:00]} 2. e4 {[%clk 0:02:59]}  d5 {[%clk 0:03:00]} 3. e5 {[%clk 0:03:00]}  c5 {[%clk 0:03:00]} 4. c3 {[%clk 0:03:00]}  Nc6 {[%clk 0:03:01]} 5. Nf3 {[%clk 0:03:00]}  Bd7 {[%clk 0:03:00]} 6. a3 {[%clk 0:02:57]}  Rc8 {[%clk 0:02:58]} 7. b4 {[%clk 0:02:55]}  cxd4 {[%clk 0:02:58]} 8. cxd4 {[%clk 0:02:55]}  Qb6 {[%clk 0:02:58]} 9. Bb2 {[%clk 0:02:45]}  Na5 {[%clk 0:02:58]} 10. Nbd2 {[%clk 0:02:45]}  Nc4 {[%clk 0:02:58]} 11. Nxc4 {[%clk 0:02:38]}  dxc4 {[%clk 0:02:58]} 12. Rc1 {[%clk 0:02:39]}  Bb5 {[%clk 0:02:29]} 13. d5 {[%clk 0:02:31]}  a5 {[%clk 0:02:24]} 14. d6 {[%clk 0:02:25]}  axb4 {[%clk 0:02:21]} 15. axb4 {[%clk 0:02:26]}  Nh6 {[%clk 0:02:01]} 16. Qd4 {[%clk 0:02:23]}  Qa6 {[%clk 0:01:51]} 17. g4 {[%clk 0:02:18]}  g6 {[%clk 0:01:32]} 18. Nd2 {[%clk 0:02:10]}  Bg7 {[%clk 0:01:26]} 19. d7+ {[%clk 0:01:59]}  Bxd7 {[%clk 0:01:24]} 20. Nxc4 {[%clk 0:01:59]}  O-O {[%clk 0:00:44]} 21. Qxd7 {[%clk 0:01:59]}  Rfd8 {[%clk 0:00:27]} 22. b5 {[%clk 0:01:46]}  Qa7 {[%clk 0:00:17]} 23. b6 {[%clk 0:01:34]}  Qa2 {[%clk 0:00:08]} 24. Qxb7 {[%clk 0:01:31]}  Nxg4 {[%clk 0:00:05]} 25. Be2 {[%clk 0:01:21]}  Rxc4 {[%clk 0:00:04]} 26. Rxc4 {[%clk 0:01:08]}  Qxb2 {[%clk 0:00:03]} 27. O-O {[%clk 0:00:59]}  Nxe5 {[%clk 0:00:00]} 28. Rc8 {[%clk 0:00:54]} 1-0


[Site "https://www.chess.com"]

[Event "Titled Tuesday Blitz July 25 Early 2023"]
[White "Tarasova, Viktoriya"]
[Black "Galiot, Goran"]
[WhiteFideId "4175840"]
[BlackFideId "931560"]
[WhiteElo "2385"]
[BlackElo "2533"]
[Result "0-1"]
[Round "10"]
[TimeControl "180+2"]
[Date "2023.07.25"]
[WhiteClock "0:00:00"]
[BlackClock "0:00:18"]
[Board "129"]

1. d4 {[%clk 0:03:00]}  Nf6 {[%clk 0:02:59]} 2. c4 {[%clk 0:03:01]}  g6 {[%clk 0:03:00]} 3. Nc3 {[%clk 0:03:01]}  Bg7 {[%clk 0:03:00]} 4. e4 {[%clk 0:03:01]}  d6 {[%clk 0:03:01]} 5. h3 {[%clk 0:03:01]}  O-O {[%clk 0:03:01]} 6. Be3 {[%clk 0:03:02]}  Nfd7 {[%clk 0:03:00]} 7. Be2 {[%clk 0:02:56]}  e5 {[%clk 0:03:00]} 8. d5 {[%clk 0:02:57]}  a5 {[%clk 0:02:59]} 9. g4 {[%clk 0:02:57]}  Na6 {[%clk 0:02:58]} 10. Nf3 {[%clk 0:02:52]}  Ndc5 {[%clk 0:02:58]} 11. g5 {[%clk 0:02:26]}  f5 {[%clk 0:02:55]} 12. gxf6 {[%clk 0:02:26]}  Qxf6 {[%clk 0:02:54]} 13. a3 {[%clk 0:02:22]}  Bd7 {[%clk 0:02:51]} 14. Qc2 {[%clk 0:02:20]}  a4 {[%clk 0:02:48]} 15. O-O-O {[%clk 0:02:13]}  Nb3+ {[%clk 0:02:43]} 16. Kb1 {[%clk 0:02:13]}  Nac5 {[%clk 0:02:43]} 17. h4 {[%clk 0:01:16]}  Bg4 {[%clk 0:02:20]} 18. Ng5 {[%clk 0:01:13]}  Bxe2 {[%clk 0:02:16]} 19. Qxe2 {[%clk 0:01:13]}  Nd4 {[%clk 0:02:06]} 20. Qg4 {[%clk 0:00:58]}  h6 {[%clk 0:01:55]} 21. Nh3 {[%clk 0:00:51]}  Nf3 {[%clk 0:01:31]} 22. Ng1 {[%clk 0:00:41]}  Kh7 {[%clk 0:01:25]} 23. Rh3 {[%clk 0:00:15]}  Nd4 {[%clk 0:01:19]} 24. Nge2 {[%clk 0:00:09]}  h5 {[%clk 0:01:12]} 25. Qg2 {[%clk 0:00:07]}  Nxe2 {[%clk 0:01:01]} 26. Nxe2 {[%clk 0:00:07]}  Bh6 {[%clk 0:01:00]} 27. Rg1 {[%clk 0:00:04]}  Bxe3 {[%clk 0:00:53]} 28. fxe3 {[%clk 0:00:04]}  Rf7 {[%clk 0:00:40]} 29. Rg3 {[%clk 0:00:04]}  Rg8 {[%clk 0:00:40]} 30. Nc3 {[%clk 0:00:05]}  Qf2 {[%clk 0:00:34]} 31. Qh3 {[%clk 0:00:05]}  Qd2 {[%clk 0:00:25]} 32. R3g2 {[%clk 0:00:04]}  Rf2 {[%clk 0:00:22]} 33. Rxf2 {[%clk 0:00:03]}  Qxf2 {[%clk 0:00:23]} 34. Qg3 {[%clk 0:00:03]}  Qxg3 {[%clk 0:00:20]} 35. Rxg3 {[%clk 0:00:03]}  Rf8 {[%clk 0:00:21]} 36. Rg2 {[%clk 0:00:03]}  Rf3 {[%clk 0:00:19]} 37. Nb5 {[%clk 0:00:00]}  Na6 {[%clk 0:00:18]} 0-1


[Site "https://www.chess.com"]

[Event "Titled Tuesday Blitz July 25 Early 2023"]
[White "Topalov, Aleksandar"]
[Black "Fiorito, Francisco"]
[WhiteFideId "925659"]
[BlackFideId "180165"]
[WhiteElo "2370"]
[BlackElo "2527"]
[Result "0-1"]
[Round "10"]
[TimeControl "180+2"]
[Date "2023.07.25"]
[WhiteClock "0:00:02"]
[BlackClock "0:00:22"]
[Board "130"]

1. b3 {[%clk 0:02:58]}  Nf6 {[%clk 0:02:59]} 2. Bb2 {[%clk 0:02:58]}  g6 {[%clk 0:03:00]} 3. Bxf6 {[%clk 0:02:57]}  exf6 {[%clk 0:03:00]} 4. c4 {[%clk 0:02:57]}  Bg7 {[%clk 0:03:01]} 5. Nc3 {[%clk 0:02:57]}  O-O {[%clk 0:03:01]} 6. e3 {[%clk 0:02:58]}  f5 {[%clk 0:03:01]} 7. Nge2 {[%clk 0:02:58]}  d6 {[%clk 0:03:02]} 8. g3 {[%clk 0:02:58]}  Nd7 {[%clk 0:02:55]} 9. Bg2 {[%clk 0:02:58]}  h5 {[%clk 0:02:56]} 10. O-O {[%clk 0:02:58]}  Re8 {[%clk 0:02:56]} 11. Rb1 {[%clk 0:02:58]}  c6 {[%clk 0:02:56]} 12. b4 {[%clk 0:02:58]}  Nf6 {[%clk 0:02:57]} 13. d3 {[%clk 0:02:57]}  h4 {[%clk 0:02:54]} 14. b5 {[%clk 0:02:57]}  Bd7 {[%clk 0:02:54]} 15. bxc6 {[%clk 0:02:57]}  bxc6 {[%clk 0:02:55]} 16. Qa4 {[%clk 0:02:54]}  Qc7 {[%clk 0:02:45]} 17. Qa6 {[%clk 0:02:52]}  Reb8 {[%clk 0:02:43]} 18. Nd4 {[%clk 0:02:50]}  Rxb1 {[%clk 0:02:18]} 19. Rxb1 {[%clk 0:02:49]}  Ng4 {[%clk 0:01:45]} 20. Qb7 {[%clk 0:02:01]}  Rc8 {[%clk 0:01:36]} 21. Qxc7 {[%clk 0:01:57]}  Rxc7 {[%clk 0:01:36]} 22. Rb8+ {[%clk 0:01:57]}  Kh7 {[%clk 0:01:35]} 23. gxh4 {[%clk 0:01:34]}  Ne5 {[%clk 0:01:30]} 24. Bf1 {[%clk 0:01:33]}  a6 {[%clk 0:01:25]} 25. f4 {[%clk 0:01:22]}  Ng4 {[%clk 0:01:25]} 26. Nd1 {[%clk 0:01:18]}  Nxe3 {[%clk 0:01:23]} 27. Nxe3 {[%clk 0:01:18]}  Bxd4 {[%clk 0:01:22]} 28. Kf2 {[%clk 0:01:18]}  Be6 {[%clk 0:01:19]} 29. Kf3 {[%clk 0:01:18]}  Re7 {[%clk 0:01:18]} 30. Nc2 {[%clk 0:01:16]}  Ba7 {[%clk 0:01:18]} 31. Rd8 {[%clk 0:01:08]}  d5 {[%clk 0:01:18]} 32. Rd6 {[%clk 0:00:44]}  dxc4 {[%clk 0:01:08]} 33. dxc4 {[%clk 0:00:43]}  Bc8 {[%clk 0:01:07]} 34. Bd3 {[%clk 0:00:32]}  Bb7 {[%clk 0:01:01]} 35. h5 {[%clk 0:00:31]}  Bb8 {[%clk 0:00:53]} 36. hxg6+ {[%clk 0:00:25]}  fxg6 {[%clk 0:00:54]} 37. Rd4 {[%clk 0:00:19]}  c5+ {[%clk 0:00:53]} 38. Rd5 {[%clk 0:00:16]}  a5 {[%clk 0:00:50]} 39. Ne3 {[%clk 0:00:15]}  Bd6 {[%clk 0:00:46]} 40. Bc2 {[%clk 0:00:14]}  Rc7 {[%clk 0:00:42]} 41. h4 {[%clk 0:00:14]}  Bxd5+ {[%clk 0:00:40]} 42. Nxd5 {[%clk 0:00:14]}  Rb7 {[%clk 0:00:38]} 43. Bb3 {[%clk 0:00:14]}  Kh6 {[%clk 0:00:38]} 44. Kg3 {[%clk 0:00:10]}  Ra7 {[%clk 0:00:37]} 45. Ba4 {[%clk 0:00:09]}  Ra8 {[%clk 0:00:34]} 46. Bb5 {[%clk 0:00:09]}  a4 {[%clk 0:00:33]} 47. a3 {[%clk 0:00:09]}  Bf8 {[%clk 0:00:29]} 48. Kf3 {[%clk 0:00:09]}  Bg7 {[%clk 0:00:29]} 49. Kg3 {[%clk 0:00:08]}  Bb2 {[%clk 0:00:29]} 50. Nb6 {[%clk 0:00:07]}  Rd8 {[%clk 0:00:26]} 51. Nxa4 {[%clk 0:00:08]}  Bxa3 {[%clk 0:00:25]} 52. Nb6 {[%clk 0:00:08]}  Rd3+ {[%clk 0:00:25]} 53. Kf2 {[%clk 0:00:07]}  Bc1 {[%clk 0:00:26]} 54. Nd5 {[%clk 0:00:07]}  Rh3 {[%clk 0:00:22]} 55. Be8 {[%clk 0:00:05]}  Rxh4 {[%clk 0:00:21]} 56. Kf3 {[%clk 0:00:05]}  Rh3+ {[%clk 0:00:20]} 57. Kg2 {[%clk 0:00:05]}  Rb3 {[%clk 0:00:20]} 58. Ne7 {[%clk 0:00:05]}  Bxf4 {[%clk 0:00:19]} 59. Nxg6 {[%clk 0:00:05]}  Rg3+ {[%clk 0:00:20]} 60. Kf2 {[%clk 0:00:04]}  Rxg6 {[%clk 0:00:21]} 61. Bxg6 {[%clk 0:00:02]}  Kxg6 {[%clk 0:00:21]} 62. Kf3 {[%clk 0:00:02]}  Be5 {[%clk 0:00:22]} 0-1


[Site "https://www.chess.com"]

[Event "Titled Tuesday Blitz July 25 Early 2023"]
[White "Alahakoon, Isuru"]
[Black "marik_spb"]
[WhiteFideId "9900993"]
[WhiteElo "2343"]
[BlackElo "2473"]
[Result "0-1"]
[Round "10"]
[TimeControl "180+2"]
[Date "2023.07.25"]
[WhiteClock "0:00:00"]
[BlackClock "0:01:00"]
[Board "131"]

1. Nf3 {[%clk 0:02:39]}  Nf6 {[%clk 0:02:59]} 2. d4 {[%clk 0:02:39]}  g6 {[%clk 0:03:00]} 3. Nc3 {[%clk 0:02:38]}  Bg7 {[%clk 0:03:01]} 4. e4 {[%clk 0:02:38]}  d6 {[%clk 0:03:01]} 5. Bf4 {[%clk 0:02:39]}  O-O {[%clk 0:03:01]} 6. Qd2 {[%clk 0:02:39]}  c5 {[%clk 0:03:02]} 7. dxc5 {[%clk 0:02:39]}  dxc5 {[%clk 0:03:01]} 8. O-O-O {[%clk 0:02:40]}  Qxd2+ {[%clk 0:03:01]} 9. Rxd2 {[%clk 0:02:41]}  Nc6 {[%clk 0:03:02]} 10. h3 {[%clk 0:02:40]}  Nh5 {[%clk 0:02:50]} 11. Be3 {[%clk 0:02:39]}  Bxc3 {[%clk 0:02:46]} 12. bxc3 {[%clk 0:02:40]}  b6 {[%clk 0:02:47]} 13. Bb5 {[%clk 0:02:39]}  Na5 {[%clk 0:02:36]} 14. e5 {[%clk 0:02:35]}  Bb7 {[%clk 0:02:34]} 15. Rd7 {[%clk 0:02:30]}  Bc6 {[%clk 0:02:13]} 16. Bxc6 {[%clk 0:02:26]}  Nxc6 {[%clk 0:02:14]} 17. g4 {[%clk 0:02:26]}  Ng7 {[%clk 0:02:14]} 18. Rhd1 {[%clk 0:02:05]}  Ne6 {[%clk 0:01:59]} 19. Ng5 {[%clk 0:01:55]}  Nxe5 {[%clk 0:01:44]} 20. Rxe7 {[%clk 0:01:49]}  Rfe8 {[%clk 0:01:44]} 21. Rxe8+ {[%clk 0:01:37]}  Rxe8 {[%clk 0:01:45]} 22. Ne4 {[%clk 0:01:36]}  Rd8 {[%clk 0:01:43]} 23. Rxd8+ {[%clk 0:01:17]}  Nxd8 {[%clk 0:01:44]} 24. Bf4 {[%clk 0:01:16]}  Nc4 {[%clk 0:01:41]} 25. Nf6+ {[%clk 0:00:56]}  Kg7 {[%clk 0:01:38]} 26. Nd5 {[%clk 0:00:51]}  f5 {[%clk 0:01:34]} 27. a4 {[%clk 0:00:36]}  fxg4 {[%clk 0:01:32]} 28. hxg4 {[%clk 0:00:37]}  h5 {[%clk 0:01:33]} 29. gxh5 {[%clk 0:00:21]}  gxh5 {[%clk 0:01:34]} 30. Bg3 {[%clk 0:00:17]}  Kg6 {[%clk 0:01:26]} 31. Nf4+ {[%clk 0:00:17]}  Kg5 {[%clk 0:01:24]} 32. Ng2 {[%clk 0:00:08]}  Kg4 {[%clk 0:01:19]} 33. Nh4 {[%clk 0:00:04]}  Ne6 {[%clk 0:01:07]} 34. Ng6 {[%clk 0:00:00]}  Ng5 {[%clk 0:01:00]} 0-1


[Site "https://www.chess.com"]

[Event "Titled Tuesday Blitz July 25 Early 2023"]
[White "Sriniaiyer, Sudarshan"]
[Black "LangesNasenhaar"]
[WhiteFideId "30937213"]
[WhiteElo "2339"]
[BlackElo "2472"]
[Result "1-0"]
[Round "10"]
[TimeControl "180+2"]
[Date "2023.07.25"]
[WhiteClock "0:00:15"]
[BlackClock "0:00:25"]
[Board "132"]

1. c4 {[%clk 0:03:00]}  g6 {[%clk 0:03:00]} 2. d4 {[%clk 0:02:59]}  Bg7 {[%clk 0:03:00]} 3. e4 {[%clk 0:03:00]}  d6 {[%clk 0:03:00]} 4. Nc3 {[%clk 0:02:59]}  e5 {[%clk 0:03:00]} 5. Nf3 {[%clk 0:02:57]}  exd4 {[%clk 0:03:00]} 6. Nxd4 {[%clk 0:02:57]}  Ne7 {[%clk 0:03:00]} 7. Be2 {[%clk 0:02:56]}  Nbc6 {[%clk 0:03:01]} 8. Be3 {[%clk 0:02:56]}  O-O {[%clk 0:03:00]} 9. O-O {[%clk 0:02:54]}  f5 {[%clk 0:03:01]} 10. Qd2 {[%clk 0:02:35]}  f4 {[%clk 0:02:54]} 11. Nxc6 {[%clk 0:02:29]}  fxe3 {[%clk 0:02:47]} 12. Nxe7+ {[%clk 0:02:26]}  Qxe7 {[%clk 0:02:43]} 13. Qxe3 {[%clk 0:02:27]}  c6 {[%clk 0:02:39]} 14. Rad1 {[%clk 0:02:24]}  Be6 {[%clk 0:02:38]} 15. b3 {[%clk 0:02:06]}  b6 {[%clk 0:02:36]} 16. h3 {[%clk 0:01:57]}  Rad8 {[%clk 0:02:33]} 17. Rd3 {[%clk 0:01:42]}  h6 {[%clk 0:02:22]} 18. Rfd1 {[%clk 0:01:23]}  Kh7 {[%clk 0:02:22]} 19. Bg4 {[%clk 0:01:23]}  Bg8 {[%clk 0:02:18]} 20. Ne2 {[%clk 0:01:18]}  Be5 {[%clk 0:02:01]} 21. f4 {[%clk 0:01:09]}  Bg7 {[%clk 0:02:00]} 22. f5 {[%clk 0:01:09]}  g5 {[%clk 0:01:56]} 23. Bh5 {[%clk 0:01:09]}  Kh8 {[%clk 0:01:49]} 24. Nd4 {[%clk 0:01:05]}  Be5 {[%clk 0:01:41]} 25. Nxc6 {[%clk 0:01:03]}  Qf6 {[%clk 0:01:39]} 26. Nxd8 {[%clk 0:00:59]}  Rxd8 {[%clk 0:01:40]} 27. Be2 {[%clk 0:00:44]}  a5 {[%clk 0:01:36]} 28. Qf3 {[%clk 0:00:38]}  Bf7 {[%clk 0:01:33]} 29. Qf2 {[%clk 0:00:38]}  Rb8 {[%clk 0:01:31]} 30. Bf3 {[%clk 0:00:33]}  Kg7 {[%clk 0:01:28]} 31. Qe2 {[%clk 0:00:34]}  a4 {[%clk 0:01:25]} 32. Bh5 {[%clk 0:00:33]}  Bg8 {[%clk 0:01:25]} 33. Bg6 {[%clk 0:00:34]}  Rb7 {[%clk 0:01:01]} 34. Qd2 {[%clk 0:00:32]}  Rd7 {[%clk 0:00:57]} 35. Qb4 {[%clk 0:00:32]}  axb3 {[%clk 0:00:56]} 36. axb3 {[%clk 0:00:33]}  g4 {[%clk 0:00:50]} 37. Qxb6 {[%clk 0:00:26]}  g3 {[%clk 0:00:43]} 38. c5 {[%clk 0:00:22]}  Qh4 {[%clk 0:00:35]} 39. c6 {[%clk 0:00:19]}  Re7 {[%clk 0:00:28]} 40. c7 {[%clk 0:00:18]}  Kf6 {[%clk 0:00:25]} 41. c8=Q {[%clk 0:00:17]}  Qxe4 {[%clk 0:00:26]} 42. Qf8+ {[%clk 0:00:17]}  Kg5 {[%clk 0:00:26]} 43. Qxe7+ {[%clk 0:00:17]}  Bf6 {[%clk 0:00:25]} 44. Qxe4 {[%clk 0:00:15]} 1-0


[Site "https://www.chess.com"]

[Event "Titled Tuesday Blitz July 25 Early 2023"]
[White "Wernberg, Hugo"]
[Black "Voege, Tobias"]
[WhiteFideId "1737511"]
[BlackFideId "1270513"]
[WhiteElo "2339"]
[BlackElo "2605"]
[Result "0-1"]
[Round "10"]
[TimeControl "180+2"]
[Date "2023.07.25"]
[WhiteClock "0:00:00"]
[BlackClock "0:00:37"]
[Board "137"]

1. d4 {[%clk 0:03:00]}  d5 {[%clk 0:02:58]} 2. c4 {[%clk 0:03:00]}  Nc6 {[%clk 0:02:59]} 3. cxd5 {[%clk 0:02:44]}  Qxd5 {[%clk 0:02:59]} 4. Nf3 {[%clk 0:02:43]}  e5 {[%clk 0:02:59]} 5. Nc3 {[%clk 0:02:38]}  Bb4 {[%clk 0:03:00]} 6. dxe5 {[%clk 0:01:58]}  Qxd1+ {[%clk 0:03:01]} 7. Kxd1 {[%clk 0:01:57]}  Bg4 {[%clk 0:03:01]} 8. Bg5 {[%clk 0:01:47]}  h6 {[%clk 0:02:57]} 9. Bf4 {[%clk 0:01:46]}  O-O-O+ {[%clk 0:02:55]} 10. Kc1 {[%clk 0:01:39]}  Nge7 {[%clk 0:02:34]} 11. e3 {[%clk 0:01:31]}  Ng6 {[%clk 0:02:29]} 12. Be2 {[%clk 0:01:10]}  Rhe8 {[%clk 0:02:21]} 13. a3 {[%clk 0:00:59]}  Bxc3 {[%clk 0:02:16]} 14. bxc3 {[%clk 0:01:00]}  Bxf3 {[%clk 0:02:13]} 15. gxf3 {[%clk 0:00:58]}  Ncxe5 {[%clk 0:02:11]} 16. Bg3 {[%clk 0:00:52]}  Rd5 {[%clk 0:02:02]} 17. Kc2 {[%clk 0:00:49]}  Red8 {[%clk 0:01:59]} 18. Rhd1 {[%clk 0:00:48]}  Rxd1 {[%clk 0:01:41]} 19. Rxd1 {[%clk 0:00:49]}  Rxd1 {[%clk 0:01:40]} 20. Kxd1 {[%clk 0:00:50]}  Nd7 {[%clk 0:01:28]} 21. f4 {[%clk 0:00:34]}  Ne7 {[%clk 0:01:11]} 22. Bd3 {[%clk 0:00:19]}  Nc5 {[%clk 0:01:06]} 23. Bc2 {[%clk 0:00:19]}  Nd5 {[%clk 0:01:01]} 24. Kd2 {[%clk 0:00:17]}  Nb6 {[%clk 0:01:01]} 25. Bd3 {[%clk 0:00:02]}  f6 {[%clk 0:00:49]} 26. Kc2 {[%clk 0:00:01]}  Kd7 {[%clk 0:00:48]} 27. Bf5+ {[%clk 0:00:01]}  Ke7 {[%clk 0:00:47]} 28. e4 {[%clk 0:00:02]}  Nc4 {[%clk 0:00:45]} 29. e5 {[%clk 0:00:01]}  Nxa3+ {[%clk 0:00:42]} 30. Kd1 {[%clk 0:00:02]}  Nb5 {[%clk 0:00:41]} 31. Kd2 {[%clk 0:00:01]}  Na4 {[%clk 0:00:38]} 32. c4 {[%clk 0:00:00]}  Nd4 {[%clk 0:00:37]} 0-1


[Site "https://www.chess.com"]